{"text_format":"3","workbook":"xlsx","n_sheets":2,"sheets":["Προϋπολογισμός γάμου","Λεπτομέρειες προϋπολογισμού"],"not_rendered":{"charts":1,"images":1,"defined_names":2},"read":"whole","date_system":"1900"}

{"sheet":"Προϋπολογισμός γάμου","index":0,"n_rows":16,"n_cols":16,"rows_kept":16,"merged":[[1,1,1,5]]}
[{"$nulls":6}," "]
[null,"ΛΙΖΑ + ΔΑΝΙΗΛ\nΟ ΓΑΜΟΣ"]
[{"$nulls":7}," "]
[]
[null,"ΚΑΤΗΓΟΡΙΑ","ΕΚΤΙΜΩΜΕΝΟ ΚΟΣΤΟΣ","ΠΡΑΓΜΑΤΙΚΟ ΚΟΣΤΟΣ","ΑΠΟΚΛΙΣΗ","% ΠΡΟΫΠΟΛΟΓΙΣΜΟΎ",{"$nulls":3},"Μη ταξινομημένα","Εκτιμώμενο κόστος","Πραγματικό κόστος","Εκτιμώμενο κόστος - Τιμή κατάταξης","Κατάταξη","#","Ταξινομημένα"]
[null,{"$f":"P6","v":"Δεξίωση"},{"$f":"VLOOKUP(ΠΙΝ_Σύνοψη[[#This Row],[ΚΑΤΗΓΟΡΙΑ]],ΠΙΝ_ΔεδομέναΑξιολόγησης,2,FALSE)","v":{"v":14500,"d":"14,500 €"}},{"$f":"IF(VLOOKUP(ΠΙΝ_Σύνοψη[[#This Row],[ΚΑΤΗΓΟΡΙΑ]],ΠΙΝ_ΔεδομέναΑξιολόγησης,3,FALSE)=0,\"\",VLOOKUP(ΠΙΝ_Σύνοψη[[#This Row],[ΚΑΤΗΓΟΡΙΑ]],ΠΙΝ_ΔεδομέναΑξιολόγησης,3,FALSE))","v":{"v":12800,"d":"12,800 €"}},{"$f":"IF(OR(ΠΙΝ_Σύνοψη[[#This Row],[ΕΚΤΙΜΩΜΕΝΟ ΚΟΣΤΟΣ]]=\"\",ΠΙΝ_Σύνοψη[[#This Row],[ΠΡΑΓΜΑΤΙΚΟ ΚΟΣΤΟΣ]]=\"\"),\"\",ΠΙΝ_Σύνοψη[[#This Row],[ΕΚΤΙΜΩΜΕΝΟ ΚΟΣΤΟΣ]]-ΠΙΝ_Σύνοψη[[#This Row],[ΠΡΑΓΜΑΤΙΚΟ ΚΟΣΤΟΣ]])","v":{"v":1700,"d":"1,700 €"}},{"$f":"ΠΙΝ_Σύνοψη[[#This Row],[ΕΚΤΙΜΩΜΕΝΟ ΚΟΣΤΟΣ]]/SUM(ΠΙΝ_Σύνοψη[ΕΚΤΙΜΩΜΕΝΟ ΚΟΣΤΟΣ])","v":{"v":0.48739495798319327,"d":"48.7%"}},{"$nulls":3},"Δεξίωση",{"$f":"ΠΙΝ_Δεξίωση[[#Totals],[ΕΚΤΙΜΩΜΕΝΑ]]","v":14500},{"$f":"ΠΙΝ_Δεξίωση[[#Totals],[ΠΡΑΓΜΑΤΙΚΑ]]","v":12800},{"$f":"K6-O6/100","v":14499.99},{"$f":"_xlfn.RANK.AVG(M6,$M$6:$M$15)","v":1},1,{"$f":"INDEX(ΠΙΝ_ΔεδομέναΑξιολόγησης,MATCH(O6,$N$6:$N$15,0),1)","v":"Δεξίωση"}]
[null,{"$f":"P7","v":"Ενδυμασία"},{"$f":"VLOOKUP(ΠΙΝ_Σύνοψη[[#This Row],[ΚΑΤΗΓΟΡΙΑ]],ΠΙΝ_ΔεδομέναΑξιολόγησης,2,FALSE)","v":{"v":4000,"d":"4,000 €"}},{"$f":"IF(VLOOKUP(ΠΙΝ_Σύνοψη[[#This Row],[ΚΑΤΗΓΟΡΙΑ]],ΠΙΝ_ΔεδομέναΑξιολόγησης,3,FALSE)=0,\"\",VLOOKUP(ΠΙΝ_Σύνοψη[[#This Row],[ΚΑΤΗΓΟΡΙΑ]],ΠΙΝ_ΔεδομέναΑξιολόγησης,3,FALSE))","v":{"v":2900,"d":"2,900 €"}},{"$f":"IF(OR(ΠΙΝ_Σύνοψη[[#This Row],[ΕΚΤΙΜΩΜΕΝΟ ΚΟΣΤΟΣ]]=\"\",ΠΙΝ_Σύνοψη[[#This Row],[ΠΡΑΓΜΑΤΙΚΟ ΚΟΣΤΟΣ]]=\"\"),\"\",ΠΙΝ_Σύνοψη[[#This Row],[ΕΚΤΙΜΩΜΕΝΟ ΚΟΣΤΟΣ]]-ΠΙΝ_Σύνοψη[[#This Row],[ΠΡΑΓΜΑΤΙΚΟ ΚΟΣΤΟΣ]])","v":{"v":1100,"d":"1,100 €"}},{"$f":"ΠΙΝ_Σύνοψη[[#This Row],[ΕΚΤΙΜΩΜΕΝΟ ΚΟΣΤΟΣ]]/SUM(ΠΙΝ_Σύνοψη[ΕΚΤΙΜΩΜΕΝΟ ΚΟΣΤΟΣ])","v":{"v":0.13445378151260504,"d":"13.4%"}},{"$nulls":3},"Ενδυμασία",{"$f":"ΠΙΝ_Ενδυμασία[[#Totals],[ΕΚΤΙΜΩΜΕΝΑ]]","v":4000},{"$f":"ΠΙΝ_Ενδυμασία[[#Totals],[ΠΡΑΓΜΑΤΙΚΑ]]","v":2900},{"$f":"K7-O7/100","v":3999.98},{"$f":"_xlfn.RANK.AVG(M7,$M$6:$M$15)","v":2},2,"Ενδυμασία"]
[null,"Λουλούδια και διακοσμήσεις",{"$f":"VLOOKUP(ΠΙΝ_Σύνοψη[[#This Row],[ΚΑΤΗΓΟΡΙΑ]],ΠΙΝ_ΔεδομέναΑξιολόγησης,2,FALSE)","v":{"v":3000,"d":"3,000 €"}},{"$f":"IF(VLOOKUP(ΠΙΝ_Σύνοψη[[#This Row],[ΚΑΤΗΓΟΡΙΑ]],ΠΙΝ_ΔεδομέναΑξιολόγησης,3,FALSE)=0,\"\",VLOOKUP(ΠΙΝ_Σύνοψη[[#This Row],[ΚΑΤΗΓΟΡΙΑ]],ΠΙΝ_ΔεδομέναΑξιολόγησης,3,FALSE))","v":""},{"$f":"IF(OR(ΠΙΝ_Σύνοψη[[#This Row],[ΕΚΤΙΜΩΜΕΝΟ ΚΟΣΤΟΣ]]=\"\",ΠΙΝ_Σύνοψη[[#This Row],[ΠΡΑΓΜΑΤΙΚΟ ΚΟΣΤΟΣ]]=\"\"),\"\",ΠΙΝ_Σύνοψη[[#This Row],[ΕΚΤΙΜΩΜΕΝΟ ΚΟΣΤΟΣ]]-ΠΙΝ_Σύνοψη[[#This Row],[ΠΡΑΓΜΑΤΙΚΟ ΚΟΣΤΟΣ]])","v":""},{"$f":"ΠΙΝ_Σύνοψη[[#This Row],[ΕΚΤΙΜΩΜΕΝΟ ΚΟΣΤΟΣ]]/SUM(ΠΙΝ_Σύνοψη[ΕΚΤΙΜΩΜΕΝΟ ΚΟΣΤΟΣ])","v":{"v":0.10084033613445378,"d":"10.1%"}},{"$nulls":3},"Λουλούδια και διακοσμήσεις",{"$f":"ΠΙΝ_ΛουλούδιαΚαιΔιακοσμήσεις[[#Totals],[ΕΚΤΙΜΩΜΕΝΑ]]","v":3000},{"$f":"ΠΙΝ_ΛουλούδιαΚαιΔιακοσμήσεις[[#Totals],[ΠΡΑΓΜΑΤΙΚΑ]]","v":0},2999.97,3,3,"Λουλούδια και διακοσμήσεις"]
[null,"Φωτογραφίες και βίντεο",{"$f":"VLOOKUP(ΠΙΝ_Σύνοψη[[#This Row],[ΚΑΤΗΓΟΡΙΑ]],ΠΙΝ_ΔεδομέναΑξιολόγησης,2,FALSE)","v":{"v":2500,"d":"2,500 €"}},{"$f":"IF(VLOOKUP(ΠΙΝ_Σύνοψη[[#This Row],[ΚΑΤΗΓΟΡΙΑ]],ΠΙΝ_ΔεδομέναΑξιολόγησης,3,FALSE)=0,\"\",VLOOKUP(ΠΙΝ_Σύνοψη[[#This Row],[ΚΑΤΗΓΟΡΙΑ]],ΠΙΝ_ΔεδομέναΑξιολόγησης,3,FALSE))","v":""},{"$f":"IF(OR(ΠΙΝ_Σύνοψη[[#This Row],[ΕΚΤΙΜΩΜΕΝΟ ΚΟΣΤΟΣ]]=\"\",ΠΙΝ_Σύνοψη[[#This Row],[ΠΡΑΓΜΑΤΙΚΟ ΚΟΣΤΟΣ]]=\"\"),\"\",ΠΙΝ_Σύνοψη[[#This Row],[ΕΚΤΙΜΩΜΕΝΟ ΚΟΣΤΟΣ]]-ΠΙΝ_Σύνοψη[[#This Row],[ΠΡΑΓΜΑΤΙΚΟ ΚΟΣΤΟΣ]])","v":""},{"$f":"ΠΙΝ_Σύνοψη[[#This Row],[ΕΚΤΙΜΩΜΕΝΟ ΚΟΣΤΟΣ]]/SUM(ΠΙΝ_Σύνοψη[ΕΚΤΙΜΩΜΕΝΟ ΚΟΣΤΟΣ])","v":{"v":0.08403361344537816,"d":"8.4%"}},{"$nulls":3},"Μουσική",{"$f":"ΠΙΝ_Μουσική[[#Totals],[ΕΚΤΙΜΩΜΕΝΑ]]","v":1800},{"$f":"ΠΙΝ_Μουσική[[#Totals],[ΠΡΑΓΜΑΤΙΚΑ]]","v":0},1799.96,5,4,"Φωτογραφίες και βίντεο"]
[null,"Μουσική",{"$f":"VLOOKUP(ΠΙΝ_Σύνοψη[[#This Row],[ΚΑΤΗΓΟΡΙΑ]],ΠΙΝ_ΔεδομέναΑξιολόγησης,2,FALSE)","v":{"v":1800,"d":"1,800 €"}},{"$f":"IF(VLOOKUP(ΠΙΝ_Σύνοψη[[#This Row],[ΚΑΤΗΓΟΡΙΑ]],ΠΙΝ_ΔεδομέναΑξιολόγησης,3,FALSE)=0,\"\",VLOOKUP(ΠΙΝ_Σύνοψη[[#This Row],[ΚΑΤΗΓΟΡΙΑ]],ΠΙΝ_ΔεδομέναΑξιολόγησης,3,FALSE))","v":""},{"$f":"IF(OR(ΠΙΝ_Σύνοψη[[#This Row],[ΕΚΤΙΜΩΜΕΝΟ ΚΟΣΤΟΣ]]=\"\",ΠΙΝ_Σύνοψη[[#This Row],[ΠΡΑΓΜΑΤΙΚΟ ΚΟΣΤΟΣ]]=\"\"),\"\",ΠΙΝ_Σύνοψη[[#This Row],[ΕΚΤΙΜΩΜΕΝΟ ΚΟΣΤΟΣ]]-ΠΙΝ_Σύνοψη[[#This Row],[ΠΡΑΓΜΑΤΙΚΟ ΚΟΣΤΟΣ]])","v":""},{"$f":"ΠΙΝ_Σύνοψη[[#This Row],[ΕΚΤΙΜΩΜΕΝΟ ΚΟΣΤΟΣ]]/SUM(ΠΙΝ_Σύνοψη[ΕΚΤΙΜΩΜΕΝΟ ΚΟΣΤΟΣ])","v":{"v":0.06050420168067227,"d":"6.1%"}},{"$nulls":3},"Φωτογραφίες και βίντεο",{"$f":"ΠΙΝ_ΦωτογραφίεςΚαιΒίντεο[[#Totals],[ΕΚΤΙΜΩΜΕΝΑ]]","v":2500},{"$f":"ΠΙΝ_ΦωτογραφίεςΚαιΒίντεο[[#Totals],[ΠΡΑΓΜΑΤΙΚΑ]]","v":0},2499.95,4,5,"Μουσική"]
[null,"Μπομπονιέρες και δώρα",{"$f":"VLOOKUP(ΠΙΝ_Σύνοψη[[#This Row],[ΚΑΤΗΓΟΡΙΑ]],ΠΙΝ_ΔεδομέναΑξιολόγησης,2,FALSE)","v":{"v":1100,"d":"1,100 €"}},{"$f":"IF(VLOOKUP(ΠΙΝ_Σύνοψη[[#This Row],[ΚΑΤΗΓΟΡΙΑ]],ΠΙΝ_ΔεδομέναΑξιολόγησης,3,FALSE)=0,\"\",VLOOKUP(ΠΙΝ_Σύνοψη[[#This Row],[ΚΑΤΗΓΟΡΙΑ]],ΠΙΝ_ΔεδομέναΑξιολόγησης,3,FALSE))","v":""},{"$f":"IF(OR(ΠΙΝ_Σύνοψη[[#This Row],[ΕΚΤΙΜΩΜΕΝΟ ΚΟΣΤΟΣ]]=\"\",ΠΙΝ_Σύνοψη[[#This Row],[ΠΡΑΓΜΑΤΙΚΟ ΚΟΣΤΟΣ]]=\"\"),\"\",ΠΙΝ_Σύνοψη[[#This Row],[ΕΚΤΙΜΩΜΕΝΟ ΚΟΣΤΟΣ]]-ΠΙΝ_Σύνοψη[[#This Row],[ΠΡΑΓΜΑΤΙΚΟ ΚΟΣΤΟΣ]])","v":""},{"$f":"ΠΙΝ_Σύνοψη[[#This Row],[ΕΚΤΙΜΩΜΕΝΟ ΚΟΣΤΟΣ]]/SUM(ΠΙΝ_Σύνοψη[ΕΚΤΙΜΩΜΕΝΟ ΚΟΣΤΟΣ])","v":{"v":0.03697478991596639,"d":"3.7%"}},{"$nulls":3},"Μπομπονιέρες και δώρα",{"$f":"ΠΙΝ_ΜπομπονιέρεςΚαιΔώρα[[#Totals],[ΕΚΤΙΜΩΜΕΝΑ]]","v":1100},{"$f":"ΠΙΝ_ΜπομπονιέρεςΚαιΔώρα[[#Totals],[ΠΡΑΓΜΑΤΙΚΑ]]","v":0},1099.94,6,6,"Μπομπονιέρες και δώρα"]
[null,{"$f":"P12","v":"Βέρες"},{"$f":"VLOOKUP(ΠΙΝ_Σύνοψη[[#This Row],[ΚΑΤΗΓΟΡΙΑ]],ΠΙΝ_ΔεδομέναΑξιολόγησης,2,FALSE)","v":{"v":1100,"d":"1,100 €"}},{"$f":"IF(VLOOKUP(ΠΙΝ_Σύνοψη[[#This Row],[ΚΑΤΗΓΟΡΙΑ]],ΠΙΝ_ΔεδομέναΑξιολόγησης,3,FALSE)=0,\"\",VLOOKUP(ΠΙΝ_Σύνοψη[[#This Row],[ΚΑΤΗΓΟΡΙΑ]],ΠΙΝ_ΔεδομέναΑξιολόγησης,3,FALSE))","v":""},{"$f":"IF(OR(ΠΙΝ_Σύνοψη[[#This Row],[ΕΚΤΙΜΩΜΕΝΟ ΚΟΣΤΟΣ]]=\"\",ΠΙΝ_Σύνοψη[[#This Row],[ΠΡΑΓΜΑΤΙΚΟ ΚΟΣΤΟΣ]]=\"\"),\"\",ΠΙΝ_Σύνοψη[[#This Row],[ΕΚΤΙΜΩΜΕΝΟ ΚΟΣΤΟΣ]]-ΠΙΝ_Σύνοψη[[#This Row],[ΠΡΑΓΜΑΤΙΚΟ ΚΟΣΤΟΣ]])","v":""},{"$f":"ΠΙΝ_Σύνοψη[[#This Row],[ΕΚΤΙΜΩΜΕΝΟ ΚΟΣΤΟΣ]]/SUM(ΠΙΝ_Σύνοψη[ΕΚΤΙΜΩΜΕΝΟ ΚΟΣΤΟΣ])","v":{"v":0.03697478991596639,"d":"3.7%"}},{"$nulls":3},"Τελετή",{"$f":"ΠΙΝ_Τελετή[[#Totals],[ΕΚΤΙΜΩΜΕΝΑ]]","v":800},{"$f":"ΠΙΝ_Τελετή[[#Totals],[ΠΡΑΓΜΑΤΙΚΑ]]","v":0},{"$f":"K12-O12/100","v":799.93},8,7,"Βέρες"]
[null,"Τελετή",{"$f":"VLOOKUP(ΠΙΝ_Σύνοψη[[#This Row],[ΚΑΤΗΓΟΡΙΑ]],ΠΙΝ_ΔεδομέναΑξιολόγησης,2,FALSE)","v":{"v":800,"d":"800 €"}},{"$f":"IF(VLOOKUP(ΠΙΝ_Σύνοψη[[#This Row],[ΚΑΤΗΓΟΡΙΑ]],ΠΙΝ_ΔεδομέναΑξιολόγησης,3,FALSE)=0,\"\",VLOOKUP(ΠΙΝ_Σύνοψη[[#This Row],[ΚΑΤΗΓΟΡΙΑ]],ΠΙΝ_ΔεδομέναΑξιολόγησης,3,FALSE))","v":""},{"$f":"IF(OR(ΠΙΝ_Σύνοψη[[#This Row],[ΕΚΤΙΜΩΜΕΝΟ ΚΟΣΤΟΣ]]=\"\",ΠΙΝ_Σύνοψη[[#This Row],[ΠΡΑΓΜΑΤΙΚΟ ΚΟΣΤΟΣ]]=\"\"),\"\",ΠΙΝ_Σύνοψη[[#This Row],[ΕΚΤΙΜΩΜΕΝΟ ΚΟΣΤΟΣ]]-ΠΙΝ_Σύνοψη[[#This Row],[ΠΡΑΓΜΑΤΙΚΟ ΚΟΣΤΟΣ]])","v":""},{"$f":"ΠΙΝ_Σύνοψη[[#This Row],[ΕΚΤΙΜΩΜΕΝΟ ΚΟΣΤΟΣ]]/SUM(ΠΙΝ_Σύνοψη[ΕΚΤΙΜΩΜΕΝΟ ΚΟΣΤΟΣ])","v":{"v":0.02689075630252101,"d":"2.7%"}},{"$nulls":3},"Χαρτικά",{"$f":"ΠΙΝ_Χαρτικά[[#Totals],[ΕΚΤΙΜΩΜΕΝΑ]]","v":500},{"$f":"ΠΙΝ_Χαρτικά[[#Totals],[ΠΡΑΓΜΑΤΙΚΑ]]","v":0},499.92,9,8,"Τελετή"]
[null,"Χαρτικά",{"$f":"VLOOKUP(ΠΙΝ_Σύνοψη[[#This Row],[ΚΑΤΗΓΟΡΙΑ]],ΠΙΝ_ΔεδομέναΑξιολόγησης,2,FALSE)","v":{"v":500,"d":"500 €"}},{"$f":"IF(VLOOKUP(ΠΙΝ_Σύνοψη[[#This Row],[ΚΑΤΗΓΟΡΙΑ]],ΠΙΝ_ΔεδομέναΑξιολόγησης,3,FALSE)=0,\"\",VLOOKUP(ΠΙΝ_Σύνοψη[[#This Row],[ΚΑΤΗΓΟΡΙΑ]],ΠΙΝ_ΔεδομέναΑξιολόγησης,3,FALSE))","v":""},{"$f":"IF(OR(ΠΙΝ_Σύνοψη[[#This Row],[ΕΚΤΙΜΩΜΕΝΟ ΚΟΣΤΟΣ]]=\"\",ΠΙΝ_Σύνοψη[[#This Row],[ΠΡΑΓΜΑΤΙΚΟ ΚΟΣΤΟΣ]]=\"\"),\"\",ΠΙΝ_Σύνοψη[[#This Row],[ΕΚΤΙΜΩΜΕΝΟ ΚΟΣΤΟΣ]]-ΠΙΝ_Σύνοψη[[#This Row],[ΠΡΑΓΜΑΤΙΚΟ ΚΟΣΤΟΣ]])","v":""},{"$f":"ΠΙΝ_Σύνοψη[[#This Row],[ΕΚΤΙΜΩΜΕΝΟ ΚΟΣΤΟΣ]]/SUM(ΠΙΝ_Σύνοψη[ΕΚΤΙΜΩΜΕΝΟ ΚΟΣΤΟΣ])","v":{"v":0.01680672268907563,"d":"1.7%"}},{"$nulls":3},"Βέρες",{"$f":"ΠΙΝ_Βέρες[[#Totals],[ΕΚΤΙΜΩΜΕΝΑ]]","v":1100},{"$f":"ΠΙΝ_Βέρες[[#Totals],[ΠΡΑΓΜΑΤΙΚΑ]]","v":0},1099.91,7,9,"Χαρτικά"]
[null,"Μετακινήσεις",{"$f":"VLOOKUP(ΠΙΝ_Σύνοψη[[#This Row],[ΚΑΤΗΓΟΡΙΑ]],ΠΙΝ_ΔεδομέναΑξιολόγησης,2,FALSE)","v":{"v":450,"d":"450 €"}},{"$f":"IF(VLOOKUP(ΠΙΝ_Σύνοψη[[#This Row],[ΚΑΤΗΓΟΡΙΑ]],ΠΙΝ_ΔεδομέναΑξιολόγησης,3,FALSE)=0,\"\",VLOOKUP(ΠΙΝ_Σύνοψη[[#This Row],[ΚΑΤΗΓΟΡΙΑ]],ΠΙΝ_ΔεδομέναΑξιολόγησης,3,FALSE))","v":""},{"$f":"IF(OR(ΠΙΝ_Σύνοψη[[#This Row],[ΕΚΤΙΜΩΜΕΝΟ ΚΟΣΤΟΣ]]=\"\",ΠΙΝ_Σύνοψη[[#This Row],[ΠΡΑΓΜΑΤΙΚΟ ΚΟΣΤΟΣ]]=\"\"),\"\",ΠΙΝ_Σύνοψη[[#This Row],[ΕΚΤΙΜΩΜΕΝΟ ΚΟΣΤΟΣ]]-ΠΙΝ_Σύνοψη[[#This Row],[ΠΡΑΓΜΑΤΙΚΟ ΚΟΣΤΟΣ]])","v":""},{"$f":"ΠΙΝ_Σύνοψη[[#This Row],[ΕΚΤΙΜΩΜΕΝΟ ΚΟΣΤΟΣ]]/SUM(ΠΙΝ_Σύνοψη[ΕΚΤΙΜΩΜΕΝΟ ΚΟΣΤΟΣ])","v":{"v":0.015126050420168067,"d":"1.5%"}},{"$nulls":3},"Μετακινήσεις",{"$f":"ΠΙΝ_Μετακινήσεις[[#Totals],[ΕΚΤΙΜΩΜΕΝΑ]]","v":450},{"$f":"ΠΙΝ_Μετακινήσεις[[#Totals],[ΠΡΑΓΜΑΤΙΚΑ]]","v":0},449.9,10,10,"Μετακινήσεις"]
[null,"Άθροισμα",{"$f":"SUBTOTAL(109,ΠΙΝ_Σύνοψη[ΕΚΤΙΜΩΜΕΝΟ ΚΟΣΤΟΣ])","v":{"v":29750,"d":"29,750 €"}},{"$f":"SUBTOTAL(109,ΠΙΝ_Σύνοψη[ΠΡΑΓΜΑΤΙΚΟ ΚΟΣΤΟΣ])","v":{"v":15700,"d":"15,700 €"}},{"$f":"ΠΙΝ_Σύνοψη[[#Totals],[ΕΚΤΙΜΩΜΕΝΟ ΚΟΣΤΟΣ]]-ΠΙΝ_Σύνοψη[[#Totals],[ΠΡΑΓΜΑΤΙΚΟ ΚΟΣΤΟΣ]]","v":{"v":14050,"d":"14,050 €"}},{"$f":"SUBTOTAL(109,ΠΙΝ_Σύνοψη[% ΠΡΟΫΠΟΛΟΓΙΣΜΟΎ])","v":{"v":1,"d":"100%"}}]

{"sheet":"Λεπτομέρειες προϋπολογισμού","index":1,"n_rows":91,"n_cols":6,"rows_kept":91}
[{"$nulls":5}," "]
[null,"ΛΕΠΤΟΜΈΡΕΙΕΣ ΠΡΟΫΠΟΛΟΓΙΣΜΟΎ"]
[]
[null,"ΔΕΞΙΩΣΗ","ΕΚΤΙΜΩΜΕΝΑ","ΠΡΑΓΜΑΤΙΚΑ","ΑΠΟΚΛΙΣΗ"]
[null,"Χώρος και ενοικιάσεις",{"v":8000,"d":"8,000.00 €"},{"v":7800,"d":"7,800.00 €"},{"$f":"IF(OR(ΠΙΝ_Δεξίωση[[#This Row],[ΕΚΤΙΜΩΜΕΝΑ]]=\"\",ΠΙΝ_Δεξίωση[[#This Row],[ΠΡΑΓΜΑΤΙΚΑ]]=\"\"),\"\",ΠΙΝ_Δεξίωση[[#This Row],[ΕΚΤΙΜΩΜΕΝΑ]]-ΠΙΝ_Δεξίωση[[#This Row],[ΠΡΑΓΜΑΤΙΚΑ]])","v":{"v":200,"d":"200.00 €"}}]
[null,"Φαγητό και εξυπηρέτηση",{"v":4000,"d":"4,000.00 €"},{"v":4200,"d":"4,200.00 €"},{"$f":"IF(OR(ΠΙΝ_Δεξίωση[[#This Row],[ΕΚΤΙΜΩΜΕΝΑ]]=\"\",ΠΙΝ_Δεξίωση[[#This Row],[ΠΡΑΓΜΑΤΙΚΑ]]=\"\"),\"\",ΠΙΝ_Δεξίωση[[#This Row],[ΕΚΤΙΜΩΜΕΝΑ]]-ΠΙΝ_Δεξίωση[[#This Row],[ΠΡΑΓΜΑΤΙΚΑ]])","v":{"v":-200,"d":"-200.00 €"}}]
[null,"Ποτά",{"v":1000,"d":"1,000.00 €"},{"v":800,"d":"800.00 €"},{"$f":"IF(OR(ΠΙΝ_Δεξίωση[[#This Row],[ΕΚΤΙΜΩΜΕΝΑ]]=\"\",ΠΙΝ_Δεξίωση[[#This Row],[ΠΡΑΓΜΑΤΙΚΑ]]=\"\"),\"\",ΠΙΝ_Δεξίωση[[#This Row],[ΕΚΤΙΜΩΜΕΝΑ]]-ΠΙΝ_Δεξίωση[[#This Row],[ΠΡΑΓΜΑΤΙΚΑ]])","v":{"v":200,"d":"200.00 €"}}]
[null,"Τούρτα",{"v":1000,"d":"1,000.00 €"},null,{"$f":"IF(OR(ΠΙΝ_Δεξίωση[[#This Row],[ΕΚΤΙΜΩΜΕΝΑ]]=\"\",ΠΙΝ_Δεξίωση[[#This Row],[ΠΡΑΓΜΑΤΙΚΑ]]=\"\"),\"\",ΠΙΝ_Δεξίωση[[#This Row],[ΕΚΤΙΜΩΜΕΝΑ]]-ΠΙΝ_Δεξίωση[[#This Row],[ΠΡΑΓΜΑΤΙΚΑ]])","v":""}]
[null,"Διάφορα έξοδα",{"v":500,"d":"500.00 €"},null,{"$f":"IF(OR(ΠΙΝ_Δεξίωση[[#This Row],[ΕΚΤΙΜΩΜΕΝΑ]]=\"\",ΠΙΝ_Δεξίωση[[#This Row],[ΠΡΑΓΜΑΤΙΚΑ]]=\"\"),\"\",ΠΙΝ_Δεξίωση[[#This Row],[ΕΚΤΙΜΩΜΕΝΑ]]-ΠΙΝ_Δεξίωση[[#This Row],[ΠΡΑΓΜΑΤΙΚΑ]])","v":""}]
[null,"ΣΥΝΟΛΟ ΔΕΞΙΩΣΗΣ",{"$f":"SUBTOTAL(109,ΠΙΝ_Δεξίωση[ΕΚΤΙΜΩΜΕΝΑ])","v":{"v":14500,"d":"14,500.00 €"}},{"$f":"SUBTOTAL(109,ΠΙΝ_Δεξίωση[ΠΡΑΓΜΑΤΙΚΑ])","v":{"v":12800,"d":"12,800.00 €"}},{"$f":"ΠΙΝ_Δεξίωση[[#Totals],[ΕΚΤΙΜΩΜΕΝΑ]]-ΠΙΝ_Δεξίωση[[#Totals],[ΠΡΑΓΜΑΤΙΚΑ]]","v":{"v":1700,"d":"1,700.00 €"}}]
[]
[]
[null,"ΕΝΔΥΜΑΣΙΑ","ΕΚΤΙΜΩΜΕΝΑ","ΠΡΑΓΜΑΤΙΚΑ","ΑΠΟΚΛΙΣΗ"]
[null,"Σμόκιν, κοστούμι ή/και φορέματα",{"v":3000,"d":"3,000.00 €"},{"v":2900,"d":"2,900.00 €"},{"$f":"IF(OR(ΠΙΝ_Ενδυμασία[[#This Row],[ΕΚΤΙΜΩΜΕΝΑ]]=\"\",ΠΙΝ_Ενδυμασία[[#This Row],[ΠΡΑΓΜΑΤΙΚΑ]]=\"\"),\"\",ΠΙΝ_Ενδυμασία[[#This Row],[ΕΚΤΙΜΩΜΕΝΑ]]-ΠΙΝ_Ενδυμασία[[#This Row],[ΠΡΑΓΜΑΤΙΚΑ]])","v":{"v":100,"d":"100.00 €"}}]
[null,"Αλλαγές",{"v":100,"d":"100.00 €"},null,{"$f":"IF(OR(ΠΙΝ_Ενδυμασία[[#This Row],[ΕΚΤΙΜΩΜΕΝΑ]]=\"\",ΠΙΝ_Ενδυμασία[[#This Row],[ΠΡΑΓΜΑΤΙΚΑ]]=\"\"),\"\",ΠΙΝ_Ενδυμασία[[#This Row],[ΕΚΤΙΜΩΜΕΝΑ]]-ΠΙΝ_Ενδυμασία[[#This Row],[ΠΡΑΓΜΑΤΙΚΑ]])","v":""}]
[null,"Διακοσμητικό κεφαλής και πέπλο",{"v":200,"d":"200.00 €"},null,{"$f":"IF(OR(ΠΙΝ_Ενδυμασία[[#This Row],[ΕΚΤΙΜΩΜΕΝΑ]]=\"\",ΠΙΝ_Ενδυμασία[[#This Row],[ΠΡΑΓΜΑΤΙΚΑ]]=\"\"),\"\",ΠΙΝ_Ενδυμασία[[#This Row],[ΕΚΤΙΜΩΜΕΝΑ]]-ΠΙΝ_Ενδυμασία[[#This Row],[ΠΡΑΓΜΑΤΙΚΑ]])","v":""}]
[null,"Αξεσουάρ",{"v":100,"d":"100.00 €"},null,{"$f":"IF(OR(ΠΙΝ_Ενδυμασία[[#This Row],[ΕΚΤΙΜΩΜΕΝΑ]]=\"\",ΠΙΝ_Ενδυμασία[[#This Row],[ΠΡΑΓΜΑΤΙΚΑ]]=\"\"),\"\",ΠΙΝ_Ενδυμασία[[#This Row],[ΕΚΤΙΜΩΜΕΝΑ]]-ΠΙΝ_Ενδυμασία[[#This Row],[ΠΡΑΓΜΑΤΙΚΑ]])","v":""}]
[null,"Μαλλιά και μακιγιάζ",{"v":500,"d":"500.00 €"},null,{"$f":"IF(OR(ΠΙΝ_Ενδυμασία[[#This Row],[ΕΚΤΙΜΩΜΕΝΑ]]=\"\",ΠΙΝ_Ενδυμασία[[#This Row],[ΠΡΑΓΜΑΤΙΚΑ]]=\"\"),\"\",ΠΙΝ_Ενδυμασία[[#This Row],[ΕΚΤΙΜΩΜΕΝΑ]]-ΠΙΝ_Ενδυμασία[[#This Row],[ΠΡΑΓΜΑΤΙΚΑ]])","v":""}]
[null,"Διάφορα έξοδα",{"v":100,"d":"100.00 €"},null,{"$f":"IF(OR(ΠΙΝ_Ενδυμασία[[#This Row],[ΕΚΤΙΜΩΜΕΝΑ]]=\"\",ΠΙΝ_Ενδυμασία[[#This Row],[ΠΡΑΓΜΑΤΙΚΑ]]=\"\"),\"\",ΠΙΝ_Ενδυμασία[[#This Row],[ΕΚΤΙΜΩΜΕΝΑ]]-ΠΙΝ_Ενδυμασία[[#This Row],[ΠΡΑΓΜΑΤΙΚΑ]])","v":""}]
[null,"ΣΎΝΟΛΟ ΕΝΔΥΜΑΣΊΑΣ",{"$f":"SUBTOTAL(109,ΠΙΝ_Ενδυμασία[ΕΚΤΙΜΩΜΕΝΑ])","v":{"v":4000,"d":"4,000.00 €"}},{"$f":"SUBTOTAL(109,ΠΙΝ_Ενδυμασία[ΠΡΑΓΜΑΤΙΚΑ])","v":{"v":2900,"d":"2,900.00 €"}},{"$f":"ΠΙΝ_Ενδυμασία[[#Totals],[ΕΚΤΙΜΩΜΕΝΑ]]-ΠΙΝ_Ενδυμασία[[#Totals],[ΠΡΑΓΜΑΤΙΚΑ]]","v":{"v":1100,"d":"1,100.00 €"}}]
[]
[]
[null,"ΛΟΥΛΟΥΔΙΑ ΚΑΙ ΔΙΑΚΟΣΜΗΣΕΙΣ","ΕΚΤΙΜΩΜΕΝΑ","ΠΡΑΓΜΑΤΙΚΑ","ΑΠΟΚΛΙΣΗ"]
[null,"Ανθοσυνθέσεις για την τελετή",{"v":1000,"d":"1,000.00 €"},null,{"$f":"IF(OR(ΠΙΝ_ΛουλούδιαΚαιΔιακοσμήσεις[[#This Row],[ΕΚΤΙΜΩΜΕΝΑ]]=\"\",ΠΙΝ_ΛουλούδιαΚαιΔιακοσμήσεις[[#This Row],[ΠΡΑΓΜΑΤΙΚΑ]]=\"\"),\"\",ΠΙΝ_ΛουλούδιαΚαιΔιακοσμήσεις[[#This Row],[ΕΚΤΙΜΩΜΕΝΑ]]-ΠΙΝ_ΛουλούδιαΚαιΔιακοσμήσεις[[#This Row],[ΠΡΑΓΜΑΤΙΚΑ]])","v":""}]
[null,"Μπουμπούκια και καλάθι για τις κοπέλες με τα λουλούδια",{"v":500,"d":"500.00 €"},null,{"$f":"IF(OR(ΠΙΝ_ΛουλούδιαΚαιΔιακοσμήσεις[[#This Row],[ΕΚΤΙΜΩΜΕΝΑ]]=\"\",ΠΙΝ_ΛουλούδιαΚαιΔιακοσμήσεις[[#This Row],[ΠΡΑΓΜΑΤΙΚΑ]]=\"\"),\"\",ΠΙΝ_ΛουλούδιαΚαιΔιακοσμήσεις[[#This Row],[ΕΚΤΙΜΩΜΕΝΑ]]-ΠΙΝ_ΛουλούδιαΚαιΔιακοσμήσεις[[#This Row],[ΠΡΑΓΜΑΤΙΚΑ]])","v":""}]
[null,"Μαξιλάρι για τις βέρες",{"v":100,"d":"100.00 €"},null,{"$f":"IF(OR(ΠΙΝ_ΛουλούδιαΚαιΔιακοσμήσεις[[#This Row],[ΕΚΤΙΜΩΜΕΝΑ]]=\"\",ΠΙΝ_ΛουλούδιαΚαιΔιακοσμήσεις[[#This Row],[ΠΡΑΓΜΑΤΙΚΑ]]=\"\"),\"\",ΠΙΝ_ΛουλούδιαΚαιΔιακοσμήσεις[[#This Row],[ΕΚΤΙΜΩΜΕΝΑ]]-ΠΙΝ_ΛουλούδιαΚαιΔιακοσμήσεις[[#This Row],[ΠΡΑΓΜΑΤΙΚΑ]])","v":""}]
[null,"Ανθοδέσμες",{"v":500,"d":"500.00 €"},null,{"$f":"IF(OR(ΠΙΝ_ΛουλούδιαΚαιΔιακοσμήσεις[[#This Row],[ΕΚΤΙΜΩΜΕΝΑ]]=\"\",ΠΙΝ_ΛουλούδιαΚαιΔιακοσμήσεις[[#This Row],[ΠΡΑΓΜΑΤΙΚΑ]]=\"\"),\"\",ΠΙΝ_ΛουλούδιαΚαιΔιακοσμήσεις[[#This Row],[ΕΚΤΙΜΩΜΕΝΑ]]-ΠΙΝ_ΛουλούδιαΚαιΔιακοσμήσεις[[#This Row],[ΠΡΑΓΜΑΤΙΚΑ]])","v":""}]
[null,"Μπουτονιέρες",{"v":100,"d":"100.00 €"},null,{"$f":"IF(OR(ΠΙΝ_ΛουλούδιαΚαιΔιακοσμήσεις[[#This Row],[ΕΚΤΙΜΩΜΕΝΑ]]=\"\",ΠΙΝ_ΛουλούδιαΚαιΔιακοσμήσεις[[#This Row],[ΠΡΑΓΜΑΤΙΚΑ]]=\"\"),\"\",ΠΙΝ_ΛουλούδιαΚαιΔιακοσμήσεις[[#This Row],[ΕΚΤΙΜΩΜΕΝΑ]]-ΠΙΝ_ΛουλούδιαΚαιΔιακοσμήσεις[[#This Row],[ΠΡΑΓΜΑΤΙΚΑ]])","v":""}]
[null,"Κορσάζ",{"v":200,"d":"200.00 €"},null,{"$f":"IF(OR(ΠΙΝ_ΛουλούδιαΚαιΔιακοσμήσεις[[#This Row],[ΕΚΤΙΜΩΜΕΝΑ]]=\"\",ΠΙΝ_ΛουλούδιαΚαιΔιακοσμήσεις[[#This Row],[ΠΡΑΓΜΑΤΙΚΑ]]=\"\"),\"\",ΠΙΝ_ΛουλούδιαΚαιΔιακοσμήσεις[[#This Row],[ΕΚΤΙΜΩΜΕΝΑ]]-ΠΙΝ_ΛουλούδιαΚαιΔιακοσμήσεις[[#This Row],[ΠΡΑΓΜΑΤΙΚΑ]])","v":""}]
[null,"Διακοσμήσεις για τη δεξίωση",{"v":300,"d":"300.00 €"},null,{"$f":"IF(OR(ΠΙΝ_ΛουλούδιαΚαιΔιακοσμήσεις[[#This Row],[ΕΚΤΙΜΩΜΕΝΑ]]=\"\",ΠΙΝ_ΛουλούδιαΚαιΔιακοσμήσεις[[#This Row],[ΠΡΑΓΜΑΤΙΚΑ]]=\"\"),\"\",ΠΙΝ_ΛουλούδιαΚαιΔιακοσμήσεις[[#This Row],[ΕΚΤΙΜΩΜΕΝΑ]]-ΠΙΝ_ΛουλούδιαΚαιΔιακοσμήσεις[[#This Row],[ΠΡΑΓΜΑΤΙΚΑ]])","v":""}]
[null,"Φωτισμός",{"v":200,"d":"200.00 €"},null,{"$f":"IF(OR(ΠΙΝ_ΛουλούδιαΚαιΔιακοσμήσεις[[#This Row],[ΕΚΤΙΜΩΜΕΝΑ]]=\"\",ΠΙΝ_ΛουλούδιαΚαιΔιακοσμήσεις[[#This Row],[ΠΡΑΓΜΑΤΙΚΑ]]=\"\"),\"\",ΠΙΝ_ΛουλούδιαΚαιΔιακοσμήσεις[[#This Row],[ΕΚΤΙΜΩΜΕΝΑ]]-ΠΙΝ_ΛουλούδιαΚαιΔιακοσμήσεις[[#This Row],[ΠΡΑΓΜΑΤΙΚΑ]])","v":""}]
[null,"Διάφορα έξοδα",{"v":100,"d":"100.00 €"},null,{"$f":"IF(OR(ΠΙΝ_ΛουλούδιαΚαιΔιακοσμήσεις[[#This Row],[ΕΚΤΙΜΩΜΕΝΑ]]=\"\",ΠΙΝ_ΛουλούδιαΚαιΔιακοσμήσεις[[#This Row],[ΠΡΑΓΜΑΤΙΚΑ]]=\"\"),\"\",ΠΙΝ_ΛουλούδιαΚαιΔιακοσμήσεις[[#This Row],[ΕΚΤΙΜΩΜΕΝΑ]]-ΠΙΝ_ΛουλούδιαΚαιΔιακοσμήσεις[[#This Row],[ΠΡΑΓΜΑΤΙΚΑ]])","v":""}]
[null,"ΣΥΝΟΛΟ ΛΟΥΛΟΥΔΙΩΝ ΚΑΙ ΔΙΑΚΟΣΜΗΣΕΩΝ",{"$f":"SUBTOTAL(109,ΠΙΝ_ΛουλούδιαΚαιΔιακοσμήσεις[ΕΚΤΙΜΩΜΕΝΑ])","v":{"v":3000,"d":"3,000.00 €"}},{"$f":"SUBTOTAL(109,ΠΙΝ_ΛουλούδιαΚαιΔιακοσμήσεις[ΠΡΑΓΜΑΤΙΚΑ])","v":{"v":0,"d":"0.00 €"}},{"$f":"ΠΙΝ_ΛουλούδιαΚαιΔιακοσμήσεις[[#Totals],[ΕΚΤΙΜΩΜΕΝΑ]]-ΠΙΝ_ΛουλούδιαΚαιΔιακοσμήσεις[[#Totals],[ΠΡΑΓΜΑΤΙΚΑ]]","v":{"v":3000,"d":"3,000.00 €"}}]
[]
[]
[null,"ΜΟΥΣΙΚΗ","ΕΚΤΙΜΩΜΕΝΑ","ΠΡΑΓΜΑΤΙΚΑ","ΑΠΟΚΛΙΣΗ"]
[null,"Μουσικοί τελετής",{"v":700,"d":"700.00 €"},null,{"$f":"IF(OR(ΠΙΝ_Μουσική[[#This Row],[ΕΚΤΙΜΩΜΕΝΑ]]=\"\",ΠΙΝ_Μουσική[[#This Row],[ΠΡΑΓΜΑΤΙΚΑ]]=\"\"),\"\",ΠΙΝ_Μουσική[[#This Row],[ΕΚΤΙΜΩΜΕΝΑ]]-ΠΙΝ_Μουσική[[#This Row],[ΠΡΑΓΜΑΤΙΚΑ]])","v":""}]
[null,"Μουσικοί για την ώρα του κοκτέιλ",{"v":300,"d":"300.00 €"},null,{"$f":"IF(OR(ΠΙΝ_Μουσική[[#This Row],[ΕΚΤΙΜΩΜΕΝΑ]]=\"\",ΠΙΝ_Μουσική[[#This Row],[ΠΡΑΓΜΑΤΙΚΑ]]=\"\"),\"\",ΠΙΝ_Μουσική[[#This Row],[ΕΚΤΙΜΩΜΕΝΑ]]-ΠΙΝ_Μουσική[[#This Row],[ΠΡΑΓΜΑΤΙΚΑ]])","v":""}]
[null,"Μπάντα δεξίωσης, DJ ή ψυχαγωγία",{"v":200,"d":"200.00 €"},null,{"$f":"IF(OR(ΠΙΝ_Μουσική[[#This Row],[ΕΚΤΙΜΩΜΕΝΑ]]=\"\",ΠΙΝ_Μουσική[[#This Row],[ΠΡΑΓΜΑΤΙΚΑ]]=\"\"),\"\",ΠΙΝ_Μουσική[[#This Row],[ΕΚΤΙΜΩΜΕΝΑ]]-ΠΙΝ_Μουσική[[#This Row],[ΠΡΑΓΜΑΤΙΚΑ]])","v":""}]
[null,"Ενοικίαση συστήματος ήχου ή πίστας για χορό",{"v":400,"d":"400.00 €"},null,{"$f":"IF(OR(ΠΙΝ_Μουσική[[#This Row],[ΕΚΤΙΜΩΜΕΝΑ]]=\"\",ΠΙΝ_Μουσική[[#This Row],[ΠΡΑΓΜΑΤΙΚΑ]]=\"\"),\"\",ΠΙΝ_Μουσική[[#This Row],[ΕΚΤΙΜΩΜΕΝΑ]]-ΠΙΝ_Μουσική[[#This Row],[ΠΡΑΓΜΑΤΙΚΑ]])","v":""}]
[null,"Διάφορα έξοδα",{"v":200,"d":"200.00 €"},null,{"$f":"IF(OR(ΠΙΝ_Μουσική[[#This Row],[ΕΚΤΙΜΩΜΕΝΑ]]=\"\",ΠΙΝ_Μουσική[[#This Row],[ΠΡΑΓΜΑΤΙΚΑ]]=\"\"),\"\",ΠΙΝ_Μουσική[[#This Row],[ΕΚΤΙΜΩΜΕΝΑ]]-ΠΙΝ_Μουσική[[#This Row],[ΠΡΑΓΜΑΤΙΚΑ]])","v":""}]
[null,"ΣΎΝΟΛΟ ΜΟΥΣΙΚΉΣ",{"$f":"SUBTOTAL(109,ΠΙΝ_Μουσική[ΕΚΤΙΜΩΜΕΝΑ])","v":{"v":1800,"d":"1,800.00 €"}},{"$f":"SUBTOTAL(109,ΠΙΝ_Μουσική[ΠΡΑΓΜΑΤΙΚΑ])","v":{"v":0,"d":"0.00 €"}},{"$f":"ΠΙΝ_Μουσική[[#Totals],[ΕΚΤΙΜΩΜΕΝΑ]]-ΠΙΝ_Μουσική[[#Totals],[ΠΡΑΓΜΑΤΙΚΑ]]","v":{"v":1800,"d":"1,800.00 €"}}]
[]
[]
[null,"ΦΩΤΟΓΡΑΦΊΑ ΚΑΙ ΒΊΝΤΕΟ","ΕΚΤΙΜΩΜΕΝΑ","ΠΡΑΓΜΑΤΙΚΑ","ΑΠΟΚΛΙΣΗ"]
[null,"Φωτογράφιση",{"v":1000,"d":"1,000.00 €"},null,{"$f":"IF(OR(ΠΙΝ_ΦωτογραφίεςΚαιΒίντεο[[#This Row],[ΕΚΤΙΜΩΜΕΝΑ]]=\"\",ΠΙΝ_ΦωτογραφίεςΚαιΒίντεο[[#This Row],[ΠΡΑΓΜΑΤΙΚΑ]]=\"\"),\"\",ΠΙΝ_ΦωτογραφίεςΚαιΒίντεο[[#This Row],[ΕΚΤΙΜΩΜΕΝΑ]]-ΠΙΝ_ΦωτογραφίεςΚαιΒίντεο[[#This Row],[ΠΡΑΓΜΑΤΙΚΑ]])","v":""}]
[null,"Βιντεοσκόπηση",{"v":800,"d":"800.00 €"},null,{"$f":"IF(OR(ΠΙΝ_ΦωτογραφίεςΚαιΒίντεο[[#This Row],[ΕΚΤΙΜΩΜΕΝΑ]]=\"\",ΠΙΝ_ΦωτογραφίεςΚαιΒίντεο[[#This Row],[ΠΡΑΓΜΑΤΙΚΑ]]=\"\"),\"\",ΠΙΝ_ΦωτογραφίεςΚαιΒίντεο[[#This Row],[ΕΚΤΙΜΩΜΕΝΑ]]-ΠΙΝ_ΦωτογραφίεςΚαιΒίντεο[[#This Row],[ΠΡΑΓΜΑΤΙΚΑ]])","v":""}]
[null,"Πρόσθετες εκτυπώσεις και λευκώματα",{"v":500,"d":"500.00 €"},null,{"$f":"IF(OR(ΠΙΝ_ΦωτογραφίεςΚαιΒίντεο[[#This Row],[ΕΚΤΙΜΩΜΕΝΑ]]=\"\",ΠΙΝ_ΦωτογραφίεςΚαιΒίντεο[[#This Row],[ΠΡΑΓΜΑΤΙΚΑ]]=\"\"),\"\",ΠΙΝ_ΦωτογραφίεςΚαιΒίντεο[[#This Row],[ΕΚΤΙΜΩΜΕΝΑ]]-ΠΙΝ_ΦωτογραφίεςΚαιΒίντεο[[#This Row],[ΠΡΑΓΜΑΤΙΚΑ]])","v":""}]
[null,"Διάφορα έξοδα",{"v":200,"d":"200.00 €"},null,{"$f":"IF(OR(ΠΙΝ_ΦωτογραφίεςΚαιΒίντεο[[#This Row],[ΕΚΤΙΜΩΜΕΝΑ]]=\"\",ΠΙΝ_ΦωτογραφίεςΚαιΒίντεο[[#This Row],[ΠΡΑΓΜΑΤΙΚΑ]]=\"\"),\"\",ΠΙΝ_ΦωτογραφίεςΚαιΒίντεο[[#This Row],[ΕΚΤΙΜΩΜΕΝΑ]]-ΠΙΝ_ΦωτογραφίεςΚαιΒίντεο[[#This Row],[ΠΡΑΓΜΑΤΙΚΑ]])","v":""}]
[null,"ΣΥΝΟΛΟ ΦΩΤΟΓΡΑΦΊΩΝ ΚΑΙ ΒΊΝΤΕΟ",{"$f":"SUBTOTAL(109,ΠΙΝ_ΦωτογραφίεςΚαιΒίντεο[ΕΚΤΙΜΩΜΕΝΑ])","v":{"v":2500,"d":"2,500.00 €"}},{"$f":"SUBTOTAL(109,ΠΙΝ_ΦωτογραφίεςΚαιΒίντεο[ΠΡΑΓΜΑΤΙΚΑ])","v":{"v":0,"d":"0.00 €"}},{"$f":"ΠΙΝ_ΦωτογραφίεςΚαιΒίντεο[[#Totals],[ΕΚΤΙΜΩΜΕΝΑ]]-ΠΙΝ_ΦωτογραφίεςΚαιΒίντεο[[#Totals],[ΠΡΑΓΜΑΤΙΚΑ]]","v":{"v":2500,"d":"2,500.00 €"}}]
[]
[]
[null,"ΜΠΟΜΠΟΝΙΈΡΕΣ ΚΑΙ ΔΏΡΑ","ΕΚΤΙΜΩΜΕΝΑ","ΠΡΑΓΜΑΤΙΚΑ","ΑΠΟΚΛΙΣΗ"]
[null,"Δώρα καλωσορίσματος",{"v":700,"d":"700.00 €"},null,{"$f":"IF(OR(ΠΙΝ_ΜπομπονιέρεςΚαιΔώρα[[#This Row],[ΕΚΤΙΜΩΜΕΝΑ]]=\"\",ΠΙΝ_ΜπομπονιέρεςΚαιΔώρα[[#This Row],[ΠΡΑΓΜΑΤΙΚΑ]]=\"\"),\"\",ΠΙΝ_ΜπομπονιέρεςΚαιΔώρα[[#This Row],[ΕΚΤΙΜΩΜΕΝΑ]]-ΠΙΝ_ΜπομπονιέρεςΚαιΔώρα[[#This Row],[ΠΡΑΓΜΑΤΙΚΑ]])","v":""}]
[null,"Δώρα για το γλέντι",{"v":200,"d":"200.00 €"},null,{"$f":"IF(OR(ΠΙΝ_ΜπομπονιέρεςΚαιΔώρα[[#This Row],[ΕΚΤΙΜΩΜΕΝΑ]]=\"\",ΠΙΝ_ΜπομπονιέρεςΚαιΔώρα[[#This Row],[ΠΡΑΓΜΑΤΙΚΑ]]=\"\"),\"\",ΠΙΝ_ΜπομπονιέρεςΚαιΔώρα[[#This Row],[ΕΚΤΙΜΩΜΕΝΑ]]-ΠΙΝ_ΜπομπονιέρεςΚαιΔώρα[[#This Row],[ΠΡΑΓΜΑΤΙΚΑ]])","v":""}]
[null,"Διάφορα έξοδα",{"v":200,"d":"200.00 €"},null,{"$f":"IF(OR(ΠΙΝ_ΜπομπονιέρεςΚαιΔώρα[[#This Row],[ΕΚΤΙΜΩΜΕΝΑ]]=\"\",ΠΙΝ_ΜπομπονιέρεςΚαιΔώρα[[#This Row],[ΠΡΑΓΜΑΤΙΚΑ]]=\"\"),\"\",ΠΙΝ_ΜπομπονιέρεςΚαιΔώρα[[#This Row],[ΕΚΤΙΜΩΜΕΝΑ]]-ΠΙΝ_ΜπομπονιέρεςΚαιΔώρα[[#This Row],[ΠΡΑΓΜΑΤΙΚΑ]])","v":""}]
[null,"ΣΥΝΟΛΟ ΜΠΟΜΠΟΝΙΈΡΩΝ ΚΑΙ ΔΏΡΩΝ",{"$f":"SUBTOTAL(109,ΠΙΝ_ΜπομπονιέρεςΚαιΔώρα[ΕΚΤΙΜΩΜΕΝΑ])","v":{"v":1100,"d":"1,100.00 €"}},{"$f":"SUBTOTAL(109,ΠΙΝ_ΜπομπονιέρεςΚαιΔώρα[ΠΡΑΓΜΑΤΙΚΑ])","v":{"v":0,"d":"0.00 €"}},{"$f":"ΠΙΝ_ΜπομπονιέρεςΚαιΔώρα[[#Totals],[ΕΚΤΙΜΩΜΕΝΑ]]-ΠΙΝ_ΜπομπονιέρεςΚαιΔώρα[[#Totals],[ΠΡΑΓΜΑΤΙΚΑ]]","v":{"v":1100,"d":"1,100.00 €"}}]
[]
[]
[null,"ΤΕΛΕΤΗ","ΕΚΤΙΜΩΜΕΝΑ","ΠΡΑΓΜΑΤΙΚΑ","ΑΠΟΚΛΙΣΗ"]
[null,"Έξοδα τοποθεσίας",{"v":500,"d":"500.00 €"},null,{"$f":"IF(OR('Λεπτομέρειες προϋπολογισμού'!$C61=\"\",'Λεπτομέρειες προϋπολογισμού'!$D61=\"\"),\"\",'Λεπτομέρειες προϋπολογισμού'!$C61-'Λεπτομέρειες προϋπολογισμού'!$D61)","v":""}]
[null,"Έξοδα τελετάρχη ή δωρεά στην εκκλησία",{"v":200,"d":"200.00 €"},null,{"$f":"IF(OR('Λεπτομέρειες προϋπολογισμού'!$C62=\"\",'Λεπτομέρειες προϋπολογισμού'!$D62=\"\"),\"\",'Λεπτομέρειες προϋπολογισμού'!$C62-'Λεπτομέρειες προϋπολογισμού'!$D62)","v":""}]
[null,"Διάφορα έξοδα",{"v":100,"d":"100.00 €"},null,{"$f":"IF(OR('Λεπτομέρειες προϋπολογισμού'!$C63=\"\",'Λεπτομέρειες προϋπολογισμού'!$D63=\"\"),\"\",'Λεπτομέρειες προϋπολογισμού'!$C63-'Λεπτομέρειες προϋπολογισμού'!$D63)","v":""}]
[null,"ΣΎΝΟΛΟ ΤΕΛΕΤΉΣ",{"$f":"SUBTOTAL(109,ΠΙΝ_Τελετή[ΕΚΤΙΜΩΜΕΝΑ])","v":{"v":800,"d":"800.00 €"}},{"$f":"SUBTOTAL(109,ΠΙΝ_Τελετή[ΠΡΑΓΜΑΤΙΚΑ])","v":{"v":0,"d":"0.00 €"}},{"$f":"ΠΙΝ_Τελετή[[#Totals],[ΕΚΤΙΜΩΜΕΝΑ]]-ΠΙΝ_Τελετή[[#Totals],[ΠΡΑΓΜΑΤΙΚΑ]]","v":{"v":800,"d":"800.00 €"}}]
[]
[]
[null,"ΧΑΡΤΙΚΑ","ΕΚΤΙΜΩΜΕΝΑ","ΠΡΑΓΜΑΤΙΚΑ","ΑΠΟΚΛΙΣΗ"]
[null,"Κάρτες υπενθύμισης της ημερομηνίας",{"v":50,"d":"50.00 €"},null,{"$f":"IF(OR(ΠΙΝ_Χαρτικά[[#This Row],[ΕΚΤΙΜΩΜΕΝΑ]]=\"\",ΠΙΝ_Χαρτικά[[#This Row],[ΠΡΑΓΜΑΤΙΚΑ]]=\"\"),\"\",ΠΙΝ_Χαρτικά[[#This Row],[ΕΚΤΙΜΩΜΕΝΑ]]-ΠΙΝ_Χαρτικά[[#This Row],[ΠΡΑΓΜΑΤΙΚΑ]])","v":""}]
[null,"Προσκλήσεις και RSVP",{"v":100,"d":"100.00 €"},null,{"$f":"IF(OR(ΠΙΝ_Χαρτικά[[#This Row],[ΕΚΤΙΜΩΜΕΝΑ]]=\"\",ΠΙΝ_Χαρτικά[[#This Row],[ΠΡΑΓΜΑΤΙΚΑ]]=\"\"),\"\",ΠΙΝ_Χαρτικά[[#This Row],[ΕΚΤΙΜΩΜΕΝΑ]]-ΠΙΝ_Χαρτικά[[#This Row],[ΠΡΑΓΜΑΤΙΚΑ]])","v":""}]
[null,"Προγράμματα",{"v":50,"d":"50.00 €"},null,{"$f":"IF(OR(ΠΙΝ_Χαρτικά[[#This Row],[ΕΚΤΙΜΩΜΕΝΑ]]=\"\",ΠΙΝ_Χαρτικά[[#This Row],[ΠΡΑΓΜΑΤΙΚΑ]]=\"\"),\"\",ΠΙΝ_Χαρτικά[[#This Row],[ΕΚΤΙΜΩΜΕΝΑ]]-ΠΙΝ_Χαρτικά[[#This Row],[ΠΡΑΓΜΑΤΙΚΑ]])","v":""}]
[null,"Καθίσματα και τοποθέτηση καρτών",{"v":50,"d":"50.00 €"},null,{"$f":"IF(OR(ΠΙΝ_Χαρτικά[[#This Row],[ΕΚΤΙΜΩΜΕΝΑ]]=\"\",ΠΙΝ_Χαρτικά[[#This Row],[ΠΡΑΓΜΑΤΙΚΑ]]=\"\"),\"\",ΠΙΝ_Χαρτικά[[#This Row],[ΕΚΤΙΜΩΜΕΝΑ]]-ΠΙΝ_Χαρτικά[[#This Row],[ΠΡΑΓΜΑΤΙΚΑ]])","v":""}]
[null,"Κάρτες μενού",{"v":50,"d":"50.00 €"},null,{"$f":"IF(OR(ΠΙΝ_Χαρτικά[[#This Row],[ΕΚΤΙΜΩΜΕΝΑ]]=\"\",ΠΙΝ_Χαρτικά[[#This Row],[ΠΡΑΓΜΑΤΙΚΑ]]=\"\"),\"\",ΠΙΝ_Χαρτικά[[#This Row],[ΕΚΤΙΜΩΜΕΝΑ]]-ΠΙΝ_Χαρτικά[[#This Row],[ΠΡΑΓΜΑΤΙΚΑ]])","v":""}]
[null,"Ευχαριστήρια σημειώματα",{"v":50,"d":"50.00 €"},null,{"$f":"IF(OR(ΠΙΝ_Χαρτικά[[#This Row],[ΕΚΤΙΜΩΜΕΝΑ]]=\"\",ΠΙΝ_Χαρτικά[[#This Row],[ΠΡΑΓΜΑΤΙΚΑ]]=\"\"),\"\",ΠΙΝ_Χαρτικά[[#This Row],[ΕΚΤΙΜΩΜΕΝΑ]]-ΠΙΝ_Χαρτικά[[#This Row],[ΠΡΑΓΜΑΤΙΚΑ]])","v":""}]
[null,"Ταχυδρομικά τέλη",{"v":50,"d":"50.00 €"},null,{"$f":"IF(OR(ΠΙΝ_Χαρτικά[[#This Row],[ΕΚΤΙΜΩΜΕΝΑ]]=\"\",ΠΙΝ_Χαρτικά[[#This Row],[ΠΡΑΓΜΑΤΙΚΑ]]=\"\"),\"\",ΠΙΝ_Χαρτικά[[#This Row],[ΕΚΤΙΜΩΜΕΝΑ]]-ΠΙΝ_Χαρτικά[[#This Row],[ΠΡΑΓΜΑΤΙΚΑ]])","v":""}]
[null,"Διάφορα έξοδα",{"v":100,"d":"100.00 €"},null,{"$f":"IF(OR(ΠΙΝ_Χαρτικά[[#This Row],[ΕΚΤΙΜΩΜΕΝΑ]]=\"\",ΠΙΝ_Χαρτικά[[#This Row],[ΠΡΑΓΜΑΤΙΚΑ]]=\"\"),\"\",ΠΙΝ_Χαρτικά[[#This Row],[ΕΚΤΙΜΩΜΕΝΑ]]-ΠΙΝ_Χαρτικά[[#This Row],[ΠΡΑΓΜΑΤΙΚΑ]])","v":""}]
[null,"ΣΥΝΟΛΟ ΧΑΡΤΙΚΩΝ",{"$f":"SUBTOTAL(109,ΠΙΝ_Χαρτικά[ΕΚΤΙΜΩΜΕΝΑ])","v":{"v":500,"d":"500.00 €"}},{"$f":"SUBTOTAL(109,ΠΙΝ_Χαρτικά[ΠΡΑΓΜΑΤΙΚΑ])","v":{"v":0,"d":"0.00 €"}},{"$f":"ΠΙΝ_Χαρτικά[[#Totals],[ΕΚΤΙΜΩΜΕΝΑ]]-ΠΙΝ_Χαρτικά[[#Totals],[ΠΡΑΓΜΑΤΙΚΑ]]","v":{"v":500,"d":"500.00 €"}}]
[]
[]
[null,"ΒΕΡΕΣ","ΕΚΤΙΜΩΜΕΝΑ","ΠΡΑΓΜΑΤΙΚΑ","ΑΠΟΚΛΙΣΗ"]
[null,"Βέρες γάμου",{"v":1000,"d":"1,000.00 €"},null,{"$f":"IF(OR(ΠΙΝ_Βέρες[[#This Row],[ΕΚΤΙΜΩΜΕΝΑ]]=\"\",ΠΙΝ_Βέρες[[#This Row],[ΠΡΑΓΜΑΤΙΚΑ]]=\"\"),\"\",ΠΙΝ_Βέρες[[#This Row],[ΕΚΤΙΜΩΜΕΝΑ]]-ΠΙΝ_Βέρες[[#This Row],[ΠΡΑΓΜΑΤΙΚΑ]])","v":""}]
[null,"Αξεσουάρ για τις βέρες",{"v":100,"d":"100.00 €"},null,{"$f":"IF(OR(ΠΙΝ_Βέρες[[#This Row],[ΕΚΤΙΜΩΜΕΝΑ]]=\"\",ΠΙΝ_Βέρες[[#This Row],[ΠΡΑΓΜΑΤΙΚΑ]]=\"\"),\"\",ΠΙΝ_Βέρες[[#This Row],[ΕΚΤΙΜΩΜΕΝΑ]]-ΠΙΝ_Βέρες[[#This Row],[ΠΡΑΓΜΑΤΙΚΑ]])","v":""}]
[null,"ΣΥΝΟΛΟ ΓΙΑ ΤΙΣ ΒΕΡΕΣ",{"$f":"SUBTOTAL(109,ΠΙΝ_Βέρες[ΕΚΤΙΜΩΜΕΝΑ])","v":{"v":1100,"d":"1,100.00 €"}},{"$f":"SUBTOTAL(109,ΠΙΝ_Βέρες[ΠΡΑΓΜΑΤΙΚΑ])","v":{"v":0,"d":"0.00 €"}},{"$f":"ΠΙΝ_Βέρες[[#Totals],[ΕΚΤΙΜΩΜΕΝΑ]]-ΠΙΝ_Βέρες[[#Totals],[ΠΡΑΓΜΑΤΙΚΑ]]","v":{"v":1100,"d":"1,100.00 €"}}]
[]
[]
[null,"ΜΕΤΑΚΙΝΗΣΕΙΣ  ","ΕΚΤΙΜΩΜΕΝΑ","ΠΡΑΓΜΑΤΙΚΑ","ΑΠΟΚΛΙΣΗ"]
[null,"Ενοικίαση κύριου αυτοκινήτου",{"v":100,"d":"100.00 €"},null,{"$f":"IF(OR(ΠΙΝ_Μετακινήσεις[[#This Row],[ΕΚΤΙΜΩΜΕΝΑ]]=\"\",ΠΙΝ_Μετακινήσεις[[#This Row],[ΠΡΑΓΜΑΤΙΚΑ]]=\"\"),\"\",ΠΙΝ_Μετακινήσεις[[#This Row],[ΕΚΤΙΜΩΜΕΝΑ]]-ΠΙΝ_Μετακινήσεις[[#This Row],[ΠΡΑΓΜΑΤΙΚΑ]])","v":""}]
[null,"Ενοικίαση αυτοκινήτου για τους καλεσμένους",{"v":100,"d":"100.00 €"},null,{"$f":"IF(OR(ΠΙΝ_Μετακινήσεις[[#This Row],[ΕΚΤΙΜΩΜΕΝΑ]]=\"\",ΠΙΝ_Μετακινήσεις[[#This Row],[ΠΡΑΓΜΑΤΙΚΑ]]=\"\"),\"\",ΠΙΝ_Μετακινήσεις[[#This Row],[ΕΚΤΙΜΩΜΕΝΑ]]-ΠΙΝ_Μετακινήσεις[[#This Row],[ΠΡΑΓΜΑΤΙΚΑ]])","v":""}]
[null,"Μεταφορά για καλεσμένους εκτός πόλεως",{"v":100,"d":"100.00 €"},null,{"$f":"IF(OR(ΠΙΝ_Μετακινήσεις[[#This Row],[ΕΚΤΙΜΩΜΕΝΑ]]=\"\",ΠΙΝ_Μετακινήσεις[[#This Row],[ΠΡΑΓΜΑΤΙΚΑ]]=\"\"),\"\",ΠΙΝ_Μετακινήσεις[[#This Row],[ΕΚΤΙΜΩΜΕΝΑ]]-ΠΙΝ_Μετακινήσεις[[#This Row],[ΠΡΑΓΜΑΤΙΚΑ]])","v":""}]
[null,"Υπηρεσία στάθμευσης με παρκαδόρο",{"v":50,"d":"50.00 €"},null,{"$f":"IF(OR(ΠΙΝ_Μετακινήσεις[[#This Row],[ΕΚΤΙΜΩΜΕΝΑ]]=\"\",ΠΙΝ_Μετακινήσεις[[#This Row],[ΠΡΑΓΜΑΤΙΚΑ]]=\"\"),\"\",ΠΙΝ_Μετακινήσεις[[#This Row],[ΕΚΤΙΜΩΜΕΝΑ]]-ΠΙΝ_Μετακινήσεις[[#This Row],[ΠΡΑΓΜΑΤΙΚΑ]])","v":""}]
[null,"Διάφορα έξοδα",{"v":100,"d":"100.00 €"},null,{"$f":"IF(OR(ΠΙΝ_Μετακινήσεις[[#This Row],[ΕΚΤΙΜΩΜΕΝΑ]]=\"\",ΠΙΝ_Μετακινήσεις[[#This Row],[ΠΡΑΓΜΑΤΙΚΑ]]=\"\"),\"\",ΠΙΝ_Μετακινήσεις[[#This Row],[ΕΚΤΙΜΩΜΕΝΑ]]-ΠΙΝ_Μετακινήσεις[[#This Row],[ΠΡΑΓΜΑΤΙΚΑ]])","v":""}]
[null,"ΣΥΝΟΛΟ ΜΕΤΑΚΙΝΗΣΕΩΝ",{"$f":"SUBTOTAL(109,ΠΙΝ_Μετακινήσεις[ΕΚΤΙΜΩΜΕΝΑ])","v":{"v":450,"d":"450.00 €"}},{"$f":"SUBTOTAL(109,ΠΙΝ_Μετακινήσεις[ΠΡΑΓΜΑΤΙΚΑ])","v":{"v":0,"d":"0.00 €"}},{"$f":"ΠΙΝ_Μετακινήσεις[[#Totals],[ΕΚΤΙΜΩΜΕΝΑ]]-ΠΙΝ_Μετακινήσεις[[#Totals],[ΠΡΑΓΜΑΤΙΚΑ]]","v":{"v":450,"d":"450.00 €"}}]